Workbook

Sheet README
B2: 1. はじめに
B3: このスプレッドシートは、MAGELLAN BLOCKS ウェブサイトの活用例「Excel から MAGELLAN BLOCKS のフローを実行するサンプル」で使用している Microsoft Excel のスプレッドシートです。
B5: このスプレッドシートは、次のことを実現するサンプルとして提供しています。
B7: ・スプレッドシートから MAGELLAN BLOCKS のフローを実行
B8: ・BigQuery からデータを取得
B9: ・BigQuery から取得したデータをグラフで可視化
B12: 2. 前提
B13: このスプレッドシートの利用にあたっては、所定の MAGELLAN BLOCKS のフローを準備しておきます。
B15: 2.1 MAGELLAN BLOCKS のフローを準備
B16: 次のフローを準備します。
B20: ブロック名 | C20: ブロックの種類
B21: 気象データ分析 | C21: フローの開始（基本）
B22: 雨の日のデータを取得 | C22: クエリーの実行（BigQuery）
B23: 月ごとの集計 | C23: クエリーの実行（BigQuery）
B24: フローの終了 | C24: フローの終了（基本）
B26: 「雨の日のデータを取得」ブロックと「月ごとの集計」ブロックには、次の内容を設定してください。
B28: プロパティ | C28: 雨の日のデータを取得ブロック | D28: 月ごとの集計ブロック
B29: クエリー | C29: SELECT month, day, max_temperature, total_precipitation, FROM [publicdata:samples.gsod] WHERE station_number = ${station_number} AND year = ${year} AND month IN (${month}) AND total_precipitation > 0.0 ORDER BY month, day | D29: SELECT month, AVG(max_temperature) AS max_temperature, SUM(total_precipitation) AS total_precipitation, COUNT(*) AS precipitation_days FROM [${project}:${dataset}.${table1}] GROUP BY month ORDER BY month
B30: 結果格納先のデータセット | C30: ${dataset} | D30: ${dataset}
B31: 結果格納先のテーブル | C31: ${table1} | D31: ${table2}
B32: 空でないテーブルが存在したとき | C32: 上書き | D32: 上書き
B34: この他に、GCP サービスアカウントのプロパティも設定してください。
B36: 2.2 フローに ID を付与
B37: 作成したフローに次の ID を付与します。ID の付与は、フローリスト機能で行います。
B39: ID: weather_data_analysis
B41: ID は自由に設定して構いません。ただし、上記以外の ID を設定した場合は、「BLOCKS 実行」シートの D5 セルの内容を設定した ID で書き換えてください。
B44: 3. このスプレッドシートの使い方
B45: このスプレッドシートは、次の手順で使用します。
B47: 1. 「BLOCKS 実行」シートで MAGELLAN BLOCKS のフローを実行
B48: 2. 「BigQuery 接続情報」シートで Excel 用 BigQuery コネクタを使い BigQuery のデータを取得
B49: 3. 「グラフ」シートで BigQuery のデータを可視化
B51: 3.1 「BLOCKS 実行」シート
B52: 「ボード URL」、「API トークン」および「プロジェクト ID」を記入し、「フローを実行する」ボタンをクリックし、BLOCKS のフローを実行します。
B54: ボード URL: | C54: 実行するフローがあるボード URL のホスト名部分（**********blocksboard********.magellanic-clouds.net）を指定します。ボード URL は、ウェブブラウザーでボード編集画面を開き、ウェブブラウザーのアドレスバーで確認します。
B55: API トークン: | C55: 実行するフローがあるボードで生成した API トークンを指定します。
B56: プロジェクトID: | C56: Google Cloud Platform のプロジェクト ID を指定します。
B58: 3.2 「BigQuery 接続情報」シート
B59: フローの実行が成功終了した後で、Excel 用 BigQuery コネクタを使い BigQuery からデータを取得します。
B61: 「BigQuery 接続情報」シートで、シート内の解説に従い、コネクタ Key を記入し、[データ] メニューの [すべて更新] をクリックします。
B62: （BigQuery のデータが「result1」シートと「result2」シートに反映されます。また、グラフ表示用の「グラフ用データ」シートも更新されます。）
B64: 3.3 「グラフ」シート
B65: 「グラフ」シートに切り替えると、取得したデータを元にグラフが表示されます。

Sheet BLOCKS 実行
B2: フローの実行に必要な BLOCKS 情報
B3: 項目名 | D3: 値
B4: ボード URL
B5: フロー ID | D5: weather_data_analysis
B6: API トークン
B9: フローに渡す BigQuery に関する情報
B10: 項目名 | C10: フローからの参照方法 | D10: 値
B11: プロジェクト ID | C11: ${project}
B12: 結果格納先のデータセット | C12: ${dataset} | D12: excel
B13: 結果格納先のテーブル_1 | C13: ${table1} | D13: result1
B14: 結果格納先のテーブル_2 | C14: ${table2} | D14: result2
B15: 都市 | C15: ${station_number} | D15: 722430
B16: 年 | C16: ${year} | D16: 2009
B17: 月 | C17: ${month} | D17: 1,2,3,4,5,6,7,8,9,10,11,12

Sheet BigQuery 接続情報
B2: BigQuery 接続情報
B3: 項目名 | C3: 値
B4: result1 用クエリ | C4: ="SELECT * FROM [" & project & ":" & dataset_id_1 & "." & table_id_1_1 & "]" -> SELECT * FROM [:excel.result1]
B5: result2 用クエリ | C5: ="SELECT * FROM [" & project & ":" & dataset_id_1 & "." & table_id_1_2 & "]" -> SELECT * FROM [:excel.result2]
B6: プロジェクト ID | C6: =project -> 0
B7: コネクタ Key
B9: BigQuery からのデータ取得は、Google が提供する「Excel 用 BigQuery コネクタ」を使用しています。
B11: このシートでは、「Excel 用 BigQuery コネクタ」に必要な情報を管理しています。
B13: コネクタ Key には、Excel 用 BigQuery コネクタのページの先頭に表示される Key を入力してください。もし、ページ先頭に Key が表示されない場合は、ページ下部にある [Create Key] ボタンをクリックして Key を入手してください。
B15: なお、コネクタ Key を貼り付けるときは、書式なしテキストで貼り付けてください。
B17: Excel 用 BigQuery コネクタのページ:
B18: https://bigquery-connector.appspot.com/
B20: コネクタ Key 設定後、メニューから [データ] をクリックし、接続の [すべて更新] をクリックします。

Sheet result1
B2: =table_id_1_1 & " テーブルのデータ" -> result1 テーブルのデータ
B3: 月 | C3: 日 | D3: 1日(降雨)の最高気温 | E3: 1日(降雨)の降水量
B4: month | C4: day | D4: max_temperature | E4: total_precipitation
B5: 1 | C5: 5 | D5: 41 | E5: 0.009999999776
B6: 1 | C6: 6 | D6: 41 | E6: 0.05999999866
B7: 1 | C7: 7 | D7: 35.09999847 | E7: 0.3400000036
B8: 1 | C8: 28 | D8: 37.40000153 | E8: 0.1000000015
B9: 2 | C9: 1 | D9: 51.79999924 | E9: 0.02999999933
B10: 2 | C10: 9 | D10: 53.09999847 | E10: 0.0700000003
B11: 2 | C11: 10 | D11: 64.90000153 | E11: 0.05000000075
B12: 2 | C12: 11 | D12: 52 | E12: 0.4799999893
B13: 2 | C13: 13 | D13: 45 | E13: 0.009999999776
B14: 2 | C14: 14 | D14: 54 | E14: 0.5199999809
B15: 2 | C15: 15 | D15: 55.40000153 | E15: 0.2399999946
B16: 2 | C16: 17 | D16: 51.09999847 | E16: 0.009999999776
B17: 2 | C17: 18 | D17: 68 | E17: 0.03999999911
B18: 2 | C18: 19 | D18: 50 | E18: 0.009999999776
B19: 2 | C19: 21 | D19: 53.09999847 | E19: 0.09000000358
B20: 3 | C20: 11 | D20: 59 | E20: 0.01999999955
B21: 3 | C21: 12 | D21: 46.40000153 | E21: 0.8100000024
B22: 3 | C22: 13 | D22: 42.79999924 | E22: 0.6499999762
B23: 3 | C23: 14 | D23: 42.79999924 | E23: 0.4799999893
B24: 3 | C24: 15 | D24: 42.09999847 | E24: 0.4600000083
B25: 3 | C25: 24 | D25: 66.90000153 | E25: 0.009999999776
B26: 3 | C26: 25 | D26: 57.20000076 | E26: 0.1599999964
B27: 3 | C27: 26 | D27: 57.20000076 | E27: 0.7099999785
B28: 3 | C28: 27 | D28: 57.90000153 | E28: 0.3700000048
B29: 3 | C29: 28 | D29: 41 | E29: 0.3899999857
B30: 3 | C30: 30 | D30: 42.09999847 | E30: 0.009999999776
B31: 3 | C31: 31 | D31: 48 | E31: 0.01999999955
B32: 4 | C32: 2 | D32: 48 | E32: 0.05000000075
B33: 4 | C33: 12 | D33: 59 | E33: 1.00999999
B34: 4 | C34: 17 | D34: 57 | E34: 1.809999943
B35: 4 | C35: 18 | D35: 62.59999847 | E35: 3.069999933
B36: 4 | C36: 25 | D36: 66 | E36: 0.2300000042
B37: 4 | C37: 26 | D37: 68 | E37: 0.02999999933
B38: 4 | C38: 28 | D38: 64 | E38: 3.680000067
B39: 4 | C39: 29 | D39: 66.90000153 | E39: 0.4799999893
B40: 5 | C40: 1 | D40: 72 | E40: 0.01999999955
B41: 5 | C41: 11 | D41: 73 | E41: 0.009999999776
B42: 5 | C42: 12 | D42: 71.09999847 | E42: 0.02999999933
B43: 5 | C43: 17 | D43: 66.19999695 | E43: 0.1599999964
B44: 5 | C44: 22 | D44: 63 | E44: 0.0700000003
B45: 5 | C45: 24 | D45: 68 | E45: 0.1199999973
B46: 6 | C46: 25 | D46: 79 | E46: 0.2700000107
B47: 7 | C47: 7 | D47: 73 | E47: 0.4600000083
B48: 7 | C48: 8 | D48: 80.09999847 | E48: 1.019999981
B49: 7 | C49: 18 | D49: 73.40000153 | E49: 0.2099999934
B50: 7 | C50: 19 | D50: 71.09999847 | E50: 0.05999999866
B51: 7 | C51: 20 | D51: 71.09999847 | E51: 0.009999999776
B52: 7 | C52: 23 | D52: 73.40000153 | E52: 0.4399999976
B53: 7 | C53: 24 | D53: 75 | E53: 0.1700000018
B54: 7 | C54: 27 | D54: 78.09999847 | E54: 0.1099999994
B55: 7 | C55: 30 | D55: 81 | E55: 0.01999999955
B56: 7 | C56: 31 | D56: 77 | E56: 0.3400000036
B57: 8 | C57: 9 | D57: 75.90000153 | E57: 0.1899999976
B58: 8 | C58: 12 | D58: 75.90000153 | E58: 0.6100000143
B59: 8 | C59: 13 | D59: 75 | E59: 0.03999999911
B60: 8 | C60: 18 | D60: 75.19999695 | E60: 0.01999999955
B61: 8 | C61: 21 | D61: 73 | E61: 0.6999999881
B62: 8 | C62: 22 | D62: 73 | E62: 0.02999999933
B63: 8 | C63: 28 | D63: 73.90000153 | E63: 0.01999999955
B64: 8 | C64: 29 | D64: 73 | E64: 0.5
B65: 9 | C65: 4 | D65: 69.80000305 | E65: 0.7900000215
B66: 9 | C66: 9 | D66: 72 | E66: 0.25
B67: 9 | C67: 10 | D67: 75 | E67: 0.01999999955
B68: 9 | C68: 11 | D68: 75 | E68: 0.2099999934
B69: 9 | C69: 12 | D69: 73.40000153 | E69: 0.009999999776
B70: 9 | C70: 13 | D70: 73.40000153 | E70: 0.009999999776
B71: 9 | C71: 14 | D71: 71.59999847 | E71: 0.8199999928
B72: 9 | C72: 22 | D72: 68 | E72: 0.0700000003
B73: 9 | C73: 23 | D73: 66.19999695 | E73: 1.539999962
B74: 9 | C74: 25 | D74: 64.90000153 | E74: 0.0700000003
B75: 9 | C75: 28 | D75: 72 | E75: 0.8999999762
B76: 9 | C76: 29 | D76: 71.59999847 | E76: 0.009999999776
B77: 10 | C77: 2 | D77: 64 | E77: 0.6200000048
B78: 10 | C78: 4 | D78: 69.09999847 | E78: 0.4099999964
B79: 10 | C79: 5 | D79: 70 | E79: 0.6600000262
B80: 10 | C80: 6 | D80: 73.90000153 | E80: 0.009999999776
B81: 10 | C81: 8 | D81: 78.09999847 | E81: 0.07999999821
B82: 10 | C82: 10 | D82: 57 | E82: 0.9399999976
B83: 10 | C83: 12 | D83: 61 | E83: 0.05999999866
B84: 10 | C84: 13 | D84: 64 | E84: 1.230000019
B85: 10 | C85: 14 | D85: 73.90000153 | E85: 0.4199999869
B86: 10 | C86: 15 | D86: 78.09999847 | E86: 0.05999999866
B87: 10 | C87: 21 | D87: 63 | E87: 0.1000000015
B88: 10 | C88: 22 | D88: 66 | E88: 2.150000095
B89: 10 | C89: 23 | D89: 50 | E89: 1.100000024
B90: 10 | C90: 26 | D90: 54 | E90: 2.420000076
B91: 10 | C91: 27 | D91: 55 | E91: 0.009999999776
B92: 10 | C92: 29 | D92: 75.19999695 | E92: 0.05000000075
B93: 10 | C93: 30 | D93: 54 | E93: 2.940000057
B94: 11 | C94: 9 | D94: 64.40000153 | E94: 0.0700000003
B95: 11 | C95: 15 | D95: 59 | E95: 0.009999999776
B96: 11 | C96: 16 | D96: 55 | E96: 0.2399999946
B97: 11 | C97: 20 | D97: 48.90000153 | E97: 0.07999999821
B98: 11 | C98: 21 | D98: 51.79999924 | E98: 0.6299999952
B99: 11 | C99: 22 | D99: 48 | E99: 0.1400000006
B100: 11 | C100: 24 | D100: 46 | E100: 0.05999999866
B101: 11 | C101: 30 | D101: 50 | E101: 0.3799999952
B102: 12 | C102: 1 | D102: 48.20000076 | E102: 0.05000000075
B103: 12 | C103: 2 | D103: 46 | E103: 1.379999995
B104: 12 | C104: 4 | D104: 33.09999847 | E104: 0.2199999988
B105: 12 | C105: 6 | D105: 27.10000038 | E105: 0.1000000015
B106: 12 | C106: 7 | D106: 55.40000153 | E106: 0.349999994
B107: 12 | C107: 8 | D107: 55 | E107: 0.1700000018
B108: 12 | C108: 12 | D108: 44.09999847 | E108: 1.179999948
B109: 12 | C109: 14 | D109: 48.90000153 | E109: 0.03999999911
B110: 12 | C110: 15 | D110: 50 | E110: 0.4499999881
B111: 12 | C111: 17 | D111: 44.59999847 | E111: 0.1000000015
B112: 12 | C112: 18 | D112: 41 | E112: 0.4499999881
B113: 12 | C113: 22 | D113: 48.20000076 | E113: 0.01999999955
B114: 12 | C114: 23 | D114: 64.40000153 | E114: 0.01999999955
B115: 12 | C115: 24 | D115: 41 | E115: 0.1599999964
B116: 12 | C116: 29 | D116: 33.09999847 | E116: 0.1299999952
B117: 12 | C117: 30 | D117: 33.09999847 | E117: 0.3799999952
B118: 12 | C118: 31 | D118: 43 | E118: 0.4699999988

Sheet result2
B2: =table_id_1_2 & " テーブルのデータ" -> result2 テーブルのデータ
B3: 月 | C3: 月間(降雨)の最高気温の平均 | D3: 月間(降雨)の降水量の合計 | E3: 月間(降雨)の日数
B4: month | C4: max_temperature | D4: total_precipitation | E4: precipitation_days
B5: 1 | C5: 38.625 | D5: 0.5100000035 | E5: 4
B6: 2 | C6: 54.39999979 | D6: 1.549999967 | E6: 11
B7: 3 | C7: 50.28333346 | D7: 4.08999994 | E7: 12
B8: 4 | C8: 61.4375 | D8: 10.35999993 | E8: 8
B9: 5 | C9: 68.88333257 | D9: 0.4099999927 | E9: 6
B10: 6 | C10: 79 | D10: 0.2700000107 | E10: 1
B11: 7 | C11: 75.31999969 | D11: 2.839999983 | E11: 10
B12: 8 | C12: 74.36250019 | D12: 2.109999998 | E12: 8
B13: 9 | C13: 71.07500013 | D13: 4.699999945 | E13: 12
B14: 10 | C14: 65.07647032 | D14: 13.26000028 | E14: 17
B15: 11 | C15: 52.88750029 | D15: 1.609999983 | E15: 8
B16: 12 | C16: 44.48235287 | D16: 5.669999901 | E16: 17

Sheet グラフ用データ
B2: 集計結果をグラフ用に加工（単位を変換）
B3: 月 | C3: 月間(降雨)の最高気温の平均(華氏°F) | D3: 月間(降雨)の降水量の合計(inch) | E3: 月間(降雨)の最高気温の平均(摂氏°C) | F3: 月間(降雨)の降水量の合計(mm)
B4: month | C4: max_temperature(°F) | D4: total_precipitation(inch) | E4: max_temperature(℃) | F4: total_precipitation(mm)
B5: 1 | C5: =VLOOKUP(B5,result2!$B$5:$E$18,2,FALSE) -> 38.625 | D5: =VLOOKUP(B5,result2!$B$5:$E$18,3,FALSE) -> 0.5100000035 | E5: =CONVERT(C5,"F","C") -> 3.680555556 | F5: =CONVERT(D5,"in","mm") -> 12.95400009
B6: 2 | C6: =VLOOKUP(B6,result2!$B$5:$E$18,2,FALSE) -> 54.39999979 | D6: =VLOOKUP(B6,result2!$B$5:$E$18,3,FALSE) -> 1.549999967 | E6: 12.44444433 | F6: 39.36999917
B7: 3 | C7: =VLOOKUP(B7,result2!$B$5:$E$18,2,FALSE) -> 50.28333346 | D7: =VLOOKUP(B7,result2!$B$5:$E$18,3,FALSE) -> 4.08999994 | E7: 10.15740748 | F7: 103.8859985
B8: 4 | C8: =VLOOKUP(B8,result2!$B$5:$E$18,2,FALSE) -> 61.4375 | D8: =VLOOKUP(B8,result2!$B$5:$E$18,3,FALSE) -> 10.35999993 | E8: 16.35416667 | F8: 263.1439981
B9: 5 | C9: =VLOOKUP(B9,result2!$B$5:$E$18,2,FALSE) -> 68.88333257 | D9: =VLOOKUP(B9,result2!$B$5:$E$18,3,FALSE) -> 0.4099999927 | E9: 20.49074032 | F9: 10.41399981
B10: 6 | C10: =VLOOKUP(B10,result2!$B$5:$E$18,2,FALSE) -> 79 | D10: =VLOOKUP(B10,result2!$B$5:$E$18,3,FALSE) -> 0.2700000107 | E10: 26.11111111 | F10: 6.858000273
B11: 7 | C11: =VLOOKUP(B11,result2!$B$5:$E$18,2,FALSE) -> 75.31999969 | D11: =VLOOKUP(B11,result2!$B$5:$E$18,3,FALSE) -> 2.839999983 | E11: 24.0666665 | F11: 72.13599957
B12: 8 | C12: =VLOOKUP(B12,result2!$B$5:$E$18,2,FALSE) -> 74.36250019 | D12: =VLOOKUP(B12,result2!$B$5:$E$18,3,FALSE) -> 2.109999998 | E12: 23.53472233 | F12: 53.59399994
B13: 9 | C13: =VLOOKUP(B13,result2!$B$5:$E$18,2,FALSE) -> 71.07500013 | D13: =VLOOKUP(B13,result2!$B$5:$E$18,3,FALSE) -> 4.699999945 | E13: 21.7083334 | F13: 119.3799986
B14: 10 | C14: =VLOOKUP(B14,result2!$B$5:$E$18,2,FALSE) -> 65.07647032 | D14: =VLOOKUP(B14,result2!$B$5:$E$18,3,FALSE) -> 13.26000028 | E14: 18.37581684 | F14: 336.8040071
B15: 11 | C15: =VLOOKUP(B15,result2!$B$5:$E$18,2,FALSE) -> 52.88750029 | D15: =VLOOKUP(B15,result2!$B$5:$E$18,3,FALSE) -> 1.609999983 | E15: 11.60416683 | F15: 40.89399956
B16: 12 | C16: =VLOOKUP(B16,result2!$B$5:$E$18,2,FALSE) -> 44.48235287 | D16: =VLOOKUP(B16,result2!$B$5:$E$18,3,FALSE) -> 5.669999901 | E16: 6.934640485 | F16: 144.0179975

Sheet グラフ
